Workbook

Sheet (별지4) 학교발전기금 세입
A1: ■ 재외 한국학교 회계업무 처리지침 [별지 제4호서식]
A2: 학교발전기금회계 세입 예산명세서 | I2: 계정과목 명세표
A3: ( 2021. 3. 1. 부터 2022. 2. 28. 까지)
A4: 1. 세 입 | F4: 단위: | G4: ( TWD )
A5: 과 목 | D5: 2020회계연도 최종추경예산 | E5: 2021회계연도 본예산 | F5: 증감액 | G5: 산출기초 | I5: 과 목 | L5: 해설 | M5: 비고
A6: 관 | B6: 항 | C6: 목 | I6: 관 | J6: 항 | K6: 목
A7: 기부금수입 | D7: =SUM(D8) -> 30,500 | E7: =SUM(E8) -> 50,000 | F7: 19,500 | I7: 기부금수입
B8: 기부금수입 | D8: =SUM(D9:D10) -> 30,500 | E8: =SUM(E9:E10) -> 50,000 | F8: 19,500 | J8: 기부금수입
C9: 시설기부금 | F9: =E9-D9 -> 0 | K9: 시설기부금 | L9: 한국학교 교육시설의 보수 및 확충을 사용용도로 지정하여 기탁 받은 학교발전기금 접수액
C10: 운영지원기부금 | D10: 30,500 | E10: 50,000 | F10: =E10-D10 -> 19,500 | G10: 통학버스 운영 지원금 | K10: 운영지원기부금 | L10: 한국학교 운영비 부족분의 지원을 사용용도로 지정하여 기탁 받은 학교발전기금 접수액
A11: 기금운용수입 | D11: =SUM(D12,D15) -> 13 | E11: =SUM(E12,E15) -> 30 | F11: 17 | I11: 기금운용수입
B12: 이자수입 | D12: =SUM(D13:D14) -> 13 | E12: =SUM(E13:E14) -> 30 | F12: 17 | J12: 이자수입
C13: 시설기금 이자수입 | F13: =E13-D13 -> 0 | K13: 시설기금 이자수입 | L13: 시설비 목적으로 조성된 학교발전기금의 정기예금 등 예치에 따라 발생한 이자수입
C14: 운영지원기금 이자수입 | D14: 13 | E14: 30 | F14: 17 | K14: 운영지원기금 이자수입 | L14: 운영비 목적으로 조성된 학교발전기금의 정기예금 등 예치에 따라 발생한 이자수입
B15: 기타기금운용수입 | D15: =SUM(D16:D17) -> 0 | E15: =SUM(E16:E17) -> 0 | F15: 0 | J15: 기타기금운용수입
C16: 시설기금 기타기금운용수입 | F16: =E16-D16 -> 0 | K16: 시설기금 기타기금운용수입 | L16: 시설비 목적으로 조성된 학교발전기금에서 발생한 기타기금운용수입
C17: 운영지원기금 기타기금운용수입 | F17: 0 | K17: 운영지원기금 기타기금운용수입 | L17: 운영비 목적으로 조성된 학교발전기금에서 발생한 기타기금운용수입
A18: 기타수입 | D18: =SUM(D19,D21) -> 0 | E18: =SUM(E19,E21) -> 0 | F18: 0 | I18: 기타수입
B19: 환차익 | D19: =SUM(D20) -> 0 | E19: =SUM(E20) -> 0 | F19: 0 | J19: 환차익
C20: 환차익 | F20: =E20-D20 -> 0 | K20: 환차익 | L20: 환율의 차이로 인해 발생하는 수입
B21: 잡수입 | D21: =SUM(D22) -> 0 | E21: =SUM(E22) -> 0 | F21: 0 | J21: 잡수입
C22: 잡수입 | F22: =E22-D22 -> 0 | K22: 잡수입 | L22: 법규 및 변상명령에 의한 변상금, 약정위반 등으로 인한 위약금, 세금 환급금 등의 잡수입
A23: 지난연도이월금 | D23: =SUM(D24) -> 51,214 | E23: =SUM(E24) -> 1,227 | F23: -49,987 | I23: 지난연도이월금
B24: 지난연도이월금 | D24: =SUM(D25:D26) -> 51,214 | E24: =SUM(E25:E26) -> 1,227 | F24: -49,987 | J24: 지난연도이월금
C25: 지난연도이월사업비 | D25: 50,000 | F25: =E25-D25 -> -50,000 | K25: 지난연도이월사업비 | L25: 지난연도 명시이월, 사고이월 및 계속비이월 금액 ※이월사업비는 예산현액으로 관리함
C26: 지난연도이월순세계잉여금 | D26: 1,214 | E26: 1,227 | F26: 13 | K26: 지난연도이월순세계잉여금 | L26: 지난연도 세계잉여금에서 지난연도이월사업비를 제외하고 남은 금액
A27: 세입 총계 | D27: =SUM(D7,D11,D18,D23) -> 81,727 | E27: =SUM(E7,E11,E18,E23) -> 51,257 | F27: -30,470 | I27: 세입 총계

Sheet (별지4) 학교발전기금 세출
A1: ■ 재외 한국학교 회계업무 처리지침 [별지 제4호서식]
A2: 학교발전기금회계 세출 예산명세서 | I2: 계정과목 명세표
A3: ( 2021. 3. 1. 부터 2022. 2. 28. 까지)
A4: 2. 세 출 | F4: 단위: | G4: ( TWD )
A5: 과 목 | D5: 2020회계연도 최종추경예산 | E5: 2021회계연도 본예산 | F5: 증감액 | G5: 산출기초 | I5: 과 목 | L5: 해설 | M5: 비고
A6: 관 | B6: 항 | C6: 목 | I6: 관 | J6: 항 | K6: 목
A7: 전출금 | D7: =SUM(D8) -> 80,500 | E7: =SUM(E8) -> 50,000 | F7: -30,500 | I7: 전출금
B8: 교비회계전출금 | D8: =SUM(D9:D10) -> 80,500 | E8: =SUM(E9:E10) -> 50,000 | F8: -30,500 | J8: 교비회계전출금
C9: 시설비 전출금 | F9: =E9-D9 -> 0 | K9: 시설비 전출금 | L9: 시설비 목적으로 사용하기 위하여 교비회계로 전출하는 금액
C10: 운영비 전출금 | D10: 80,500 | E10: 50,000 | F10: =E10-D10 -> -30,500 | G10: 통학버스 운영비 지원금 | K10: 운영비 전출금 | L10: 운영비 목적으로 사용하기 위하여 교비회계로 전출하는 금액
A11: 발전기금사용액 | D11: =SUM(D12) -> 0 | E11: =SUM(E12) -> 0 | F11: 0 | I11: 발전기금사용액
B12: 발전기금사용액 | D12: =SUM(D13:D14) -> 0 | E12: =SUM(E13:E14) -> 0 | F12: 0 | J12: 발전기금사용액
C13: 시설비 | F13: =E13-D13 -> 0 | K13: 시설비 | L13: 학교운영위원회의 심의‧의결을 거쳐 시설비 목적으로 사용하기 위하여 학교발전기금회계출납원이 직접 지출하는 금액
C14: 운영비 | F14: 0 | K14: 운영비 | L14: 학교운영위원회의 심의‧의결을 거쳐 운영비 목적으로 사용하기 위하여 학교발전기금회계출납원이 직접 지출하는 금액
A15: 기타지출 | D15: =SUM(D16) -> 0 | E15: =SUM(E16) -> 0 | F15: 0 | I15: 기타지출
B16: 기타지출 | D16: =SUM(D17:D19) -> 0 | E16: =SUM(E17:E19) -> 0 | F16: 0 | J16: 기타지출
C17: 예비비 | F17: =E17-D17 -> 0 | K17: 예비비 | L17: 기타 예측할 수 없는 예산외의 지출이나 예산의 초과지출을 충당하기 위한 경비
C18: 환차손 | F18: 0 | K18: 환차손 | L18: 환율의 차이로 인해 발생하는 손실
C19: 잡지출 | F19: 0 | K19: 잡지출 | L19: 예측하지 못한 기타 특별히 발생한 손실
A20: 다음연도이월금 | D20: =SUM(D21) -> 1,227 | E20: =SUM(E21) -> 1,257 | F20: 30 | I20: 다음연도이월금
B21: 다음연도이월금 | D21: =SUM(D22:D23) -> 1,227 | E21: =SUM(E22:E23) -> 1,257 | F21: 30 | J21: 다음연도이월금
C22: 다음연도이월사업비 | F22: =E22-D22 -> 0 | K22: 다음연도이월사업비 | L22: 다음연도에 이월되는 명시이월, 사고이월, 계속비이월 금액 ※이월사업비는 예산현액으로 관리함
C23: 다음연도이월순세계잉여금 | D23: 1,227 | E23: 1,257 | F23: 30 | K23: 다음연도이월순세계잉여금 | L23: 다음연도로 이월되는 순세계잉여금 금액
A24: 세출 총계 | D24: =SUM(D7,D11,D15,D20) -> 81,727 | E24: =SUM(E7,E11,E15,E20) -> 51,257 | F24: -30,470 | I24: 세출 총계
